Workbook

Sheet รายการของชำ
M1: =การคำนวณ!M9 -> ประจำวัน ผลรวม
B2: รายการของชำ
C3: เสร็จสิ้น | D3: รายการ | E3: ร้านค้า | F3: ประเภท | G3: ปริมาณ | H3: หน่วย | I3: ราคาต่อหน่วย | J3: ผลรวม | K3: ข้อคิดเห็น | M3: =การคำนวณ!L9 -> 37
C4: 1 | D4: ส้ม | E4: ร้านของชำ | F4: พืชผัก | G4: 2 | H4: ปอนด์ | I4: ฿2.99 | J4: =IFERROR(รายการ[ปริมาณ]*รายการ[ราคาต่อหน่วย],"") -> ฿5.98 | M4: =การคำนวณ!M8 -> ผลิต ผลรวม
D5: แอปเปิ้ล | E5: สวนผลไม้ | F5: ผลิต | G5: 3 | H5: ปอนด์ | I5: ฿1.99 | J5: =IFERROR(รายการ[ปริมาณ]*รายการ[ราคาต่อหน่วย],"") -> ฿5.97 | K5: มีคูปอง | M5: =การคำนวณ!L8 -> 39
D6: กล้วย | E6: ร้านของชำ | F6: ผลิต | G6: 1 | H6: กลุ่ม | I6: ฿3.99 | J6: =IFERROR(รายการ[ปริมาณ]*รายการ[ราคาต่อหน่วย],"") -> ฿3.99
D7: ผักกาดหอม | E7: ตลาด | F7: ผลิต | G7: 2 | H7: หัว | I7: ฿2.29 | J7: =IFERROR(รายการ[ปริมาณ]*รายการ[ราคาต่อหน่วย],"") -> ฿4.58 | M7: =การคำนวณ!M7 -> เนื้อสัตว์ ผลรวม
D8: มะเขือเทศ | E8: ตลาด | F8: ผลิต | G8: 4 | H8: ปอนด์ | I8: ฿3.49 | J8: =IFERROR(รายการ[ปริมาณ]*รายการ[ราคาต่อหน่วย],"") -> ฿13.96 | M8: =การคำนวณ!L7 -> 80
D9: สควอช | E9: ตลาด | F9: ผลิต | G9: 2 | H9: ชิ้นละ | I9: ฿1.50 | J9: =IFERROR(รายการ[ปริมาณ]*รายการ[ราคาต่อหน่วย],"") -> ฿3.00
D10: ผักชี | E10: ร้านของชำ | F10: ผลิต | G10: 2 | H10: กลุ่ม | I10: ฿1.99 | J10: =IFERROR(รายการ[ปริมาณ]*รายการ[ราคาต่อหน่วย],"") -> ฿3.98 | M10: =การคำนวณ!M6 -> อาหารทะเล ผลรวม
D11: แตงกวา | E11: ตลาด | F11: ผลิต | G11: 1 | H11: ปอนด์ | I11: ฿2.29 | J11: =IFERROR(รายการ[ปริมาณ]*รายการ[ราคาต่อหน่วย],"") -> ฿2.29 | M11: =การคำนวณ!L6 -> 109
D12: เห็ด | E12: ร้านของชำ | F12: ผลิต | G12: 0.5 | H12: ปอนด์ | I12: ฿2.25 | J12: =IFERROR(รายการ[ปริมาณ]*รายการ[ราคาต่อหน่วย],"") -> ฿1.13 | K12: หัวเห็ดขนาดใหญ่
D13: นม | E13: จัดส่งถึงบ้าน | F13: ประจำวัน | G13: 2 | H13: แกลลอน | I13: ฿3.99 | J13: =IFERROR(รายการ[ปริมาณ]*รายการ[ราคาต่อหน่วย],"") -> ฿7.98 | M13: =การคำนวณ!M3 -> ผลรวมอื่นๆ
D14: ชีส | E14: จัดส่งถึงบ้าน | F14: ประจำวัน | G14: 1 | H14: ปอนด์ | I14: ฿9.99 | J14: =IFERROR(รายการ[ปริมาณ]*รายการ[ราคาต่อหน่วย],"") -> ฿9.99 | K14: ชีสก้อนชนิดต่างๆ | M14: =การคำนวณ!L3 -> 6
D15: ไข่ | E15: จัดส่งถึงบ้าน | F15: ประจำวัน | G15: 2 | H15: โหล | I15: ฿3.50 | J15: =IFERROR(รายการ[ปริมาณ]*รายการ[ราคาต่อหน่วย],"") -> ฿7.00
D16: คอทเทจชีส | E16: จัดส่งถึงบ้าน | F16: ประจำวัน | G16: 1 | H16: 16 ออนซ์ | I16: ฿3.89 | J16: =IFERROR(รายการ[ปริมาณ]*รายการ[ราคาต่อหน่วย],"") -> ฿3.89 | M16: =การคำนวณ!M4 -> ผลรวมของชำ
D17: ครีมเปรี้ยว | E17: จัดส่งถึงบ้าน | F17: ประจำวัน | G17: 1 | H17: 8 ออนซ์ | I17: ฿2.99 | J17: =IFERROR(รายการ[ปริมาณ]*รายการ[ราคาต่อหน่วย],"") -> ฿2.99 | M17: =GroceryTotal -> 271
D18: โยเกิร์ต | E18: ร้านของชำ | F18: ประจำวัน | G18: 1 | H18: 16 ออนซ์ | I18: ฿4.99 | J18: =IFERROR(รายการ[ปริมาณ]*รายการ[ราคาต่อหน่วย],"") -> ฿4.99 | K18: กรีกโยเกิร์ตกับน้ำผึ้ง
D19: เนื้อวัว | E19: ตลาด | F19: เนื้อสัตว์ | G19: 10 | H19: ปอนด์ | I19: ฿7.99 | J19: =IFERROR(รายการ[ปริมาณ]*รายการ[ราคาต่อหน่วย],"") -> ฿79.90 | K19: แผ่นเนื้อพันด้วยเบคอน
D20: ปลาแซลมอน | E20: ตลาดปลา | F20: อาหารทะเล | G20: 6 | H20: ปอนด์ | I20: ฿8.99 | J20: =IFERROR(รายการ[ปริมาณ]*รายการ[ราคาต่อหน่วย],"") -> ฿53.94
D21: ขาปูยักษ์อลาสก้า | E21: ตลาดปลา | F21: อาหารทะเล | G21: 5 | H21: ปอนด์ | I21: ฿10.99 | J21: =IFERROR(รายการ[ปริมาณ]*รายการ[ราคาต่อหน่วย],"") -> ฿54.95

Sheet การคำนวณ (hidden)
A1: *** แผ่นงานนี้ควรถูกซ่อน ***
K3: =SUM(รายการ[ผลรวม])-SUM(K6:K9) -> ฿5.98 | L3: =ROUND(K3,0) -> ฿6 | M3: ผลรวมอื่นๆ
L4: =ROUNDUP(SUM(รายการ[ผลรวม]),0) -> ฿271 | M4: ผลรวมของชำ
E6: =IFERROR(INDEX(รายการ[ประเภท],MATCH(,COUNTIF($E$5:E5,รายการ[ประเภท]),)),"") -> พืชผัก | F6: =SUMIFS(รายการ[ผลรวม],รายการ[ประเภท],E6) -> 5.98 | G6: =F6+ROW()/1000000 -> 5.980006 | H6: =LARGE($G$6:$G$21,1) -> 108.89001 | I6: =MATCH(H6,$G$6:$G$21,0) -> 5 | J6: =INDEX($E$6:$E$21,$I6) -> อาหารทะเล | K6: =INDEX($F$6:$F$21,$I6) -> ฿108.89 | L6: =ROUND(K6,0) -> ฿109 | M6: =UPPER(J6) & " ผลรวม" -> อาหารทะเล ผลรวม
E7: =IFERROR(INDEX(รายการ[ประเภท],MATCH(,COUNTIF($E$5:E6,รายการ[ประเภท]),)),"") -> ผลิต | F7: =SUMIFS(รายการ[ผลรวม],รายการ[ประเภท],E7) -> 38.895 | G7: =F7+ROW()/1000000 -> 38.895007 | H7: =LARGE($G$6:$G$21,2) -> 79.900009 | I7: =MATCH(H7,$G$6:$G$21,0) -> 4 | J7: =INDEX($E$6:$E$21,$I7) -> เนื้อสัตว์ | K7: =INDEX($F$6:$F$21,$I7) -> ฿79.90 | L7: =ROUND(K7,0) -> ฿80 | M7: =UPPER(J7) & " ผลรวม" -> เนื้อสัตว์ ผลรวม
E8: =IFERROR(INDEX(รายการ[ประเภท],MATCH(,COUNTIF($E$5:E7,รายการ[ประเภท]),)),"") -> ประจำวัน | F8: =SUMIFS(รายการ[ผลรวม],รายการ[ประเภท],E8) -> 36.84 | G8: 36.840008 | H8: =LARGE($G$6:$G$21,3) -> 38.895007 | I8: =MATCH(H8,$G$6:$G$21,0) -> 2 | J8: =INDEX($E$6:$E$21,$I8) -> ผลิต | K8: =INDEX($F$6:$F$21,$I8) -> ฿38.90 | L8: =ROUND(K8,0) -> ฿39 | M8: =UPPER(J8) & " ผลรวม" -> ผลิต ผลรวม
E9: =IFERROR(INDEX(รายการ[ประเภท],MATCH(,COUNTIF($E$5:E8,รายการ[ประเภท]),)),"") -> เนื้อสัตว์ | F9: =SUMIFS(รายการ[ผลรวม],รายการ[ประเภท],E9) -> 79.9 | G9: 79.900009 | H9: =LARGE($G$6:$G$21,4) -> 36.840008 | I9: =MATCH(H9,$G$6:$G$21,0) -> 3 | J9: =INDEX($E$6:$E$21,$I9) -> ประจำวัน | K9: =INDEX($F$6:$F$21,$I9) -> ฿36.84 | L9: =ROUND(K9,0) -> ฿37 | M9: =UPPER(J9) & " ผลรวม" -> ประจำวัน ผลรวม
E10: =IFERROR(INDEX(รายการ[ประเภท],MATCH(,COUNTIF($E$5:E9,รายการ[ประเภท]),)),"") -> อาหารทะเล | F10: =SUMIFS(รายการ[ผลรวม],รายการ[ประเภท],E10) -> 108.89 | G10: 108.89001
E11: =IFERROR(INDEX(รายการ[ประเภท],MATCH(,COUNTIF($E$5:E10,รายการ[ประเภท]),)),"") ->  | F11: =SUMIFS(รายการ[ผลรวม],รายการ[ประเภท],E11) -> 0 | G11: 1.1e-05
E12: =IFERROR(INDEX(รายการ[ประเภท],MATCH(,COUNTIF($E$5:E11,รายการ[ประเภท]),)),"") ->  | F12: =SUMIFS(รายการ[ผลรวม],รายการ[ประเภท],E12) -> 0 | G12: 1.2e-05
E13: =IFERROR(INDEX(รายการ[ประเภท],MATCH(,COUNTIF($E$5:E12,รายการ[ประเภท]),)),"") ->  | F13: =SUMIFS(รายการ[ผลรวม],รายการ[ประเภท],E13) -> 0 | G13: 1.3e-05
E14: =IFERROR(INDEX(รายการ[ประเภท],MATCH(,COUNTIF($E$5:E13,รายการ[ประเภท]),)),"") ->  | F14: =SUMIFS(รายการ[ผลรวม],รายการ[ประเภท],E14) -> 0 | G14: 1.4e-05
E15: =IFERROR(INDEX(รายการ[ประเภท],MATCH(,COUNTIF($E$5:E14,รายการ[ประเภท]),)),"") ->  | F15: =SUMIFS(รายการ[ผลรวม],รายการ[ประเภท],E15) -> 0 | G15: 1.5e-05
E16: =IFERROR(INDEX(รายการ[ประเภท],MATCH(,COUNTIF($E$5:E15,รายการ[ประเภท]),)),"") ->  | F16: =SUMIFS(รายการ[ผลรวม],รายการ[ประเภท],E16) -> 0 | G16: 1.6e-05
E17: =IFERROR(INDEX(รายการ[ประเภท],MATCH(,COUNTIF($E$5:E16,รายการ[ประเภท]),)),"") ->  | F17: =SUMIFS(รายการ[ผลรวม],รายการ[ประเภท],E17) -> 0 | G17: 1.7e-05
E18: =IFERROR(INDEX(รายการ[ประเภท],MATCH(,COUNTIF($E$5:E17,รายการ[ประเภท]),)),"") ->  | F18: =SUMIFS(รายการ[ผลรวม],รายการ[ประเภท],E18) -> 0 | G18: 1.8e-05
E19: =IFERROR(INDEX(รายการ[ประเภท],MATCH(,COUNTIF($E$5:E18,รายการ[ประเภท]),)),"") ->  | F19: =SUMIFS(รายการ[ผลรวม],รายการ[ประเภท],E19) -> 0 | G19: 1.9e-05
E20: =IFERROR(INDEX(รายการ[ประเภท],MATCH(,COUNTIF($E$5:E19,รายการ[ประเภท]),)),"") ->  | F20: =SUMIFS(รายการ[ผลรวม],รายการ[ประเภท],E20) -> 0 | G20: 2e-05
E21: =IFERROR(INDEX(รายการ[ประเภท],MATCH(,COUNTIF($E$5:E20,รายการ[ประเภท]),)),"") ->  | F21: =SUMIFS(รายการ[ผลรวม],รายการ[ประเภท],E21) -> 0 | G21: 2.1e-05
